{"text_format":"3","workbook":"xlsx","n_sheets":3,"sheets":["Liste d'étudiants","Liste de cours","Détails de l'étudiant"],"not_rendered":{"images":2,"defined_names":8},"read":"whole","date_system":"1900"}

{"sheet":"Liste d'étudiants","index":0,"n_rows":8,"n_cols":13,"rows_kept":8,"merged":[[1,2,2,3],[1,4,1,11],[2,4,2,11],[6,12,8,16]]}
[]
[null,null,"Liste des étudiants",null,"ACCÉDER À LA LISTE DU COURS"]
[{"$nulls":4},"ACCÉDER AUX Détails de l'étudiant"]
[null,null,"NOM DE L’ÉTUDIANT","Adresse de courriel","NUMÉRO DE TÉLÉPHONE PERSONNEL","Numéro de cellulaire","DATE DE NAISSANCE","CONTACT EN CAS D’URGENCE","NUMÉRO DE TÉLÉPHONE EN CAS D’URGENCE","MÉDECIN","NUMÉRO DE TÉLÉPHONE DU MÉDECIN","  "]
[null,null,"Nom 1","Adresse de courriel","Numéro de téléphone personnel","Numéro de cellulaire","Date","Contact 1","Numéro de téléphone en cas d’urgence","Médecin 1","Numéro de téléphone du médecin"]
[null,null,"Nom 2","Adresse de courriel","Numéro de téléphone personnel","Numéro de cellulaire","Date","Contact 2","Numéro de téléphone en cas d’urgence","Médecin 2","Numéro de téléphone du médecin"]
[null,null,"Nom 3","Adresse de courriel","Numéro de téléphone personnel","Numéro de cellulaire","Date","Contact 3","Numéro de téléphone en cas d’urgence","Médecin 3","Numéro de téléphone du médecin",null,"Conseil : pour ajouter d’autres étudiants, dans la dernière cellule du tableau, appuyez sur la touche Tab."]
[null,null,"Nom 4","Adresse de courriel","Numéro de téléphone personnel","Numéro de cellulaire","Date","Contact 4","Numéro de téléphone en cas d’urgence","Médecin 4","Numéro de téléphone du médecin"]

{"sheet":"Liste de cours","index":1,"n_rows":12,"n_cols":7,"rows_kept":12,"merged":[[1,2,2,2],[1,3,2,3],[1,4,1,6],[2,4,2,6]]}
[]
[null,null,"Liste du cours","École de graphisme","ACCÉDER À LA LISTE DES ÉTUDIANTS"]
[{"$nulls":4},"ACCÉDER AUX Détails de l'étudiant"]
[null,null,"COURS","Intitulé du cours","DATE DE DÉBUT","Date"]
[null,null,"ENSEIGNANT","Enseignant 1","DATE DE FIN","Date"]
[null,null,"ÉTUDIANTS INSCRITS",{"$f":"COUNTA(Liste_Étudiants[NOM DE L’ÉTUDIANT])","v":4}]
[]
[null,null,"NOM DE L’ÉTUDIANT","Adresse de courriel","NUMÉRO DE TÉLÉPHONE PERSONNEL","Numéro de cellulaire","  "]
[null,null,"Nom 1",{"$f":"IFERROR(VLOOKUP(Liste_Étudiants[[#This Row],[NOM DE L’ÉTUDIANT]],Étudiants[],2),\"\")","v":"Adresse de courriel"},{"$f":"IFERROR(VLOOKUP(Liste_Étudiants[[#This Row],[NOM DE L’ÉTUDIANT]],Étudiants[],3),\"\")","v":"Numéro de téléphone personnel"},{"$f":"IFERROR(VLOOKUP(Liste_Étudiants[[#This Row],[NOM DE L’ÉTUDIANT]],Étudiants[],4),\"\")","v":"Numéro de cellulaire"}]
[null,null,"Nom 2",{"$f":"IFERROR(VLOOKUP(Liste_Étudiants[[#This Row],[NOM DE L’ÉTUDIANT]],Étudiants[],2),\"\")","v":"Adresse de courriel"},{"$f":"IFERROR(VLOOKUP(Liste_Étudiants[[#This Row],[NOM DE L’ÉTUDIANT]],Étudiants[],3),\"\")","v":"Numéro de téléphone personnel"},{"$f":"IFERROR(VLOOKUP(Liste_Étudiants[[#This Row],[NOM DE L’ÉTUDIANT]],Étudiants[],4),\"\")","v":"Numéro de cellulaire"}]
[null,null,"Nom 3",{"$f":"IFERROR(VLOOKUP(Liste_Étudiants[[#This Row],[NOM DE L’ÉTUDIANT]],Étudiants[],2),\"\")","v":"Adresse de courriel"},{"$f":"IFERROR(VLOOKUP(Liste_Étudiants[[#This Row],[NOM DE L’ÉTUDIANT]],Étudiants[],3),\"\")","v":"Numéro de téléphone personnel"},{"$f":"IFERROR(VLOOKUP(Liste_Étudiants[[#This Row],[NOM DE L’ÉTUDIANT]],Étudiants[],4),\"\")","v":"Numéro de cellulaire"}]
[null,null,"Nom 4",{"$f":"IFERROR(VLOOKUP(Liste_Étudiants[[#This Row],[NOM DE L’ÉTUDIANT]],Étudiants[],2),\"\")","v":"Adresse de courriel"},{"$f":"IFERROR(VLOOKUP(Liste_Étudiants[[#This Row],[NOM DE L’ÉTUDIANT]],Étudiants[],3),\"\")","v":"Numéro de téléphone personnel"},{"$f":"IFERROR(VLOOKUP(Liste_Étudiants[[#This Row],[NOM DE L’ÉTUDIANT]],Étudiants[],4),\"\")","v":"Numéro de cellulaire"}]

{"sheet":"Détails de l'étudiant","index":2,"n_rows":13,"n_cols":4,"rows_kept":13,"merged":[[1,2,2,2],[1,3,1,4],[2,3,2,4],[3,2,3,3]]}
[]
[null,null,"Détails de l'étudiant","ACCÉDER À LA LISTE DES ÉTUDIANTS"]
[{"$nulls":3},"ACCÉDER À LA LISTE DU COURS"]
[null,null,"CONSEIL : SÉLECTIONNEZ UN ÉTUDIANT DANS LA LISTE DÉROULANTE DE LA CELLULE D5 POUR METTRE À JOUR LES DÉTAILS ASSOCIÉS"]
[null,null,"NOM DE L’ÉTUDIANT","Nom 1"]
[null,null,"Adresse de courriel",{"$f":"IFERROR(VLOOKUP(NomÉtudiant,Étudiants[],2,FALSE),\"\")","v":"Adresse de courriel"}]
[null,null,"NUMÉRO DE TÉLÉPHONE PERSONNEL",{"$f":"IFERROR(VLOOKUP(NomÉtudiant,Étudiants[],3,FALSE),\"\")","v":"Numéro de téléphone personnel"}]
[null,null,"Numéro de cellulaire",{"$f":"IFERROR(VLOOKUP(NomÉtudiant,Étudiants[],4,FALSE),\"\")","v":"Numéro de cellulaire"}]
[null,null,"DATE DE NAISSANCE",{"$f":"IFERROR(VLOOKUP(NomÉtudiant,Étudiants[],5,FALSE),\"\")","v":"Date"}]
[null,null,"CONTACT EN CAS D’URGENCE",{"$f":"IFERROR(VLOOKUP(NomÉtudiant,Étudiants[],6,FALSE),\"\")","v":"Contact 1"}]
[null,null,"NUMÉRO DE TÉLÉPHONE EN CAS D’URGENCE",{"$f":"IFERROR(VLOOKUP(NomÉtudiant,Étudiants[],7,FALSE),\"\")","v":"Numéro de téléphone en cas d’urgence"}]
[null,null,"MÉDECIN",{"$f":"IFERROR(VLOOKUP(NomÉtudiant,Étudiants[],8,FALSE),\"\")","v":"Médecin 1"}]
[null,null,"NUMÉRO DE TÉLÉPHONE DU MÉDECIN",{"$f":"IFERROR(VLOOKUP(NomÉtudiant,Étudiants[],9,FALSE),\"\")","v":"Numéro de téléphone du médecin"}]